Cogmind - Beta 13 @@@ ROGUE MODE // 2024.04.24 @ 19:50:13 Player: AntinDisguise Result: Destroyed by Y-45 Defender with Heavy Assault Rifle Performance ------------- Evolutions (2) 1000 Regions Visited (3) 600 Robots Destroyed (44) 220 Value Destroyed (776) 776 Prototype IDs (2) 40 Alien Tech Used (0) 0 Bonus (0) 0 TOTAL SCORE: 2636 Bonus ------- None Cogmind --------- Core Integrity 0/550 Matter 72/300 Energy 100/100 System Corruption 1% Temperature Cool (9) Movement Core (350) Ox6 Location -8/Materials Parts ------- > --- POWER (2) -------- (None) > --- PROPULSION (4) --- (None) > --- UTILITY (3) ------ Large Storage Unit > --- WEAPON (2) ------- (None) > --- INVENTORY (15) --- Medium Storage Unit Hardened Medium Armor Plating Field Laser Katana Peak State ------------ > --- POWER ------------ Heavy Ion Engine Light Deuterium Engine > --- PROPULSION ------- Light Treads Light Treads Light Treads Light Treads > --- UTILITY ---------- Large Storage Unit Improved Terrain Scanner Hardlight Generator > --- WEAPON ----------- Autogun Autogun > --- INVENTORY -------- Light Treads Medium Storage Unit Hardened Medium Armor Plating Hardlight Generator Field Laser EM Pulse Cannon Improved Assault Rifle Improved Assault Rifle Katana [Rating: 23] Favorites ----------- Power Ion Engine Engine Ion Engine Propulsion Light Treads Treads Light Treads Utility Improved Terrain Scanner Device Improved Terrain Scanner Storage Medium Storage Unit Protection Hardened Medium Armor Plating Weapon Shotgun Energy Gun Small Laser Energy Cannon EM Pulse Cannon Ballistic Gun Shotgun Build | -11 -10 -9 -8 ------- Run | Yrd Mat Mat Mat Slots Evolved 4 | . . 2 2 Power 1 | . . 1 . Propulsion 2 | . . . 2 Utility 1 | . . 1 . Weapon . | . . . . Parts Attached 33 | 7 5 9 12 Power 3 | 1 . 1 1 Engine 3 | 1 . 1 1 Core . | . . . . Reactor . | . . . . Propulsion 8 | 2 . . 6 Treads 8 | 2 . . 6 Leg . | . . . . Wheel . | . . . . Hover . | . . . . Flight . | . . . . Utility 8 | 2 2 3 1 Device 4 | 1 1 1 1 Storage 3 | 1 1 1 . Processor . | . . . . Hackware . | . . . . Protection 1 | . . 1 . Artifact . | . . . . Weapon 14 | 2 3 5 4 Energy Gun 1 | . 1 . . Energy Cannon 1 | . . . 1 Ballistic Gun 12 | 2 2 5 3 Ballistic Cannon . | . . . . Launcher . | . . . . Special Weapon . | . . . . Impact Weapon . | . . . . Slashing Weapon . | . . . . Piercing Weapon . | . . . . Special Melee Weapon . | . . . . Unidentified Prototypes 2 | . . 2 . Parts Lost 18 | . . 3 15 Power 3 | . . 1 2 Propulsion 6 | . . 1 5 Utility 3 | . . . 3 Weapon 6 | . . 1 5 Highest Loss Streak 12 | . . 2 12 To Critical Strikes . | . . . . Average Slot Usage (%) 85 | . 100 74 78 Engine 12 | . 14 10 11 Treads 21 | . 28 14 26 Device 13 | . 14 12 14 Storage 11 | . 14 11 9 Protection 2 | . . 4 . Ballistic Gun 22 | . 25 21 16 Naked Turns . | . . . . Heaviest Build 45 | 14 22 43 45 Greatest Support 80 | 40 40 40 80 Greatest Overweight (x) 8 | . . 2 8 Average Overweight (x) . | . . . . Largest Inventory Capacity 15 | 8 10 15 15 Average Capacity 10 | 7 8 11 15 Most Carried 13 | 4 8 13 10 Average Carried 7 | . 6 9 7 Final Capacity 15 | 8 10 15 15 Final Carried 10 | 2 8 10 4 Class Distribution -------------------- 100% | Mutant Dominant Class ---------------- Mutant | -10/Materials Mutant | -9/Materials Mutant | -8/Materials Resources | -11 -10 -9 -8 ----------- Run | Yrd Mat Mat Mat Matter Collected 965 | 276 297 309 83 Remotely . | . . . . Salvage Created 1189 | 109 383 582 115 Parts 95 | 10 26 52 7 Haulers Intercepted 4 | . 2 2 . Recyclers Shooed 2 | 1 1 . . Parts Field Recycled . | . . . . Retrieved Matter . | . . . . Parts Self-Destructed . | . . . . Prevented . | . . . . Kills | -11 -10 -9 -8 ------- Run | Yrd Mat Mat Mat Combat Hostiles Destroyed 28 | . 10 16 2 Guns 28 | . 10 16 2 Classes Destroyed 11 | 2 6 3 . Worker 1 | . 1 . . Builder 1 | . . 1 . Tunneler 2 | 2 . . . Hauler 4 | . 2 2 . Recycler 2 | 1 1 . . Operator 2 | . 1 1 . Watcher 4 | . 1 3 . Swarmer 15 | . 8 7 . Grunt 10 | . 2 7 1 Duelist 1 | . . 1 . Sentry 2 | . . 1 1 Best Kill Streak 5 | 2 5 5 2 Combat Bots Only 5 | . 2 5 2 Max Kills in Single Turn 2 | 1 1 2 1 Gunslinging 1 | . . 1 . Exploded . | . . . . Melee . | . . . . Uniques/NPCs Destroyed . | . . . . Combat | -11 -10 -9 -8 -------- Run | Yrd Mat Mat Mat Hostile Shots Fired 355 | . 61 89 205 Missed 95 | . 27 20 48 Damage Taken 3219 | . 338 768 2113 Core 766 | . 68 146 552 Absorbed by Shields 300 | . . 36 264 Core Remaining (%) 78 | 100 72 63 . Volleys Fired 115 | 4 48 50 13 Largest 2 | 2 2 2 2 Hottest 86 | 40 60 46 86 Shots Fired 223 | 8 96 97 22 Gun 222 | 8 96 97 21 Cannon 1 | . . . 1 Launcher . | . . . . Special . | . . . . Kinetic 217 | 8 91 97 21 Thermal 5 | . 5 . . Explosive . | . . . . Electromagnetic 1 | . . . 1 Robot Hit Streak 13 | 3 9 7 13 Robot Miss Streak 12 | 1 3 12 1 Penetration Max . | . . . . Secondary Targets 4 | . 1 3 . Max Gunslinging Chain 1 | . 1 1 . Shots Hit Robots 153 | 5 59 70 19 Core Hits 72 | 4 24 40 4 Critical Kills 1 | 1 . . . Critical Parts Destroyed 1 | . . 1 . Critical Strikes 2 | 1 . 1 . Destroy 2 | 1 . 1 . Melee Attacks . | . . . . Impact . | . . . . Slashing . | . . . . Piercing . | . . . . Sneak Attacks . | . . . . Combat Hostiles . | . . . . Follow-up Attacks . | . . . . Damage Inflicted 2155 | 55 720 1098 282 Guns 2135 | 55 720 1098 262 Cannons 20 | . . . 20 Explosions . | . . . . Melee . | . . . . Ramming . | . . . . Kinetic 2101 | 55 686 1098 262 Thermal 34 | . 34 . . Explosive . | . . . . Electromagnetic 20 | . . . 20 Impact . | . . . . Slashing . | . . . . Piercing . | . . . . Highest Corruption 1 | . . . 1 Average Corruption 1 | . . . 1 Corruption Purged . | . . . . Corruption Blocked . | . . . . Effects 1 | . . . 1 Energy Discharges 1 | . . . 1 Overload Shots . | . . . . Overflow Damage . | . . . . Projectiles . | . . . . Explosions . | . . . . Melee . | . . . . Knockbacks . | . . . . Impact . | . . . . Kinetic . | . . . . Secondary . | . . . . Self-Inflicted Damage . | . . . . Shots . | . . . . Rammed . | . . . . Targets Rammed . | . . . . Kicked . | . . . . Crushed . | . . . . Highest Temperature 60 | . 12 14 60 Average Temperature 9 | . 6 5 15 Received Heat Transfer 1567 | . 120 197 1250 Siege Activations . | . . . . Robots Corrupted . | . . . . Combat Hostiles . | . . . . Parts Fried . | . . . . Impact Corruptions . | . . . . Robots Melted . | . . . . Combat Hostiles . | . . . . Parts Melted . | . . . . Heat Transferred 75 | . 75 . . Parts Sabotaged . | . . . . Parts Stolen . | . . . . Parts Stripped . | . . . . Power Chain Reactions . | . . . . Alert | -11 -10 -9 -8 ------- Run | Yrd Mat Mat Mat Peak Influence 277 | 15 277 257 66 Initial 56 | . 9 56 51 Average 105 | 8 130 117 44 Maximum Alert Level 1 | . 1 1 . Low Security (%) 87 | 100 71 97 100 Level 1 12 | . 28 2 . Level 2 . | . . . . Level 3 . | . . . . Level 4 . | . . . . Level 5 . | . . . . High Security . | . . . . Max Security . | . . . . Squads Dispatched 4 | . 1 2 1 Investigation 1 | . . 1 . Extermination . | . . . . Reinforcement 3 | . 1 1 1 Assault . | . . . . Garrison . | . . . . Intercept . | . . . . Searches Triggered . | . . . . Construction Impeded . | . . . . Haulers Reinforced . | . . . . Active Scanning Responses . | . . . . Cargo Convoy Interrupts . | . . . . Stealth | -11 -10 -9 -8 --------- Run | Yrd Mat Mat Mat Distress Signals 3 | . . 3 . Communications Jammed . | . . . . Distress Signals . | . . . . Times Spotted 50 | . 20 25 5 Peak Tracking Total 6 | . 6 4 6 Tactical Retreats 2 | . 2 . . Traps | -11 -10 -9 -8 ------- Run | Yrd Mat Mat Mat Traps Triggered 3 | . 1 1 1 Indirectly . | . . . . Trap Hack Attempts . | . . . . Triggered . | . . . . Disarmed . | . . . . Reprogrammed . | . . . . Reused . | . . . . Traps Extracted . | . . . . Installed . | . . . . Triggered . | . . . . Machines | -11 -10 -9 -8 ---------- Run | Yrd Mat Mat Mat Machines Disabled . | . . . . Max in Single Turn . | . . . . Machines Repaired . | . . . . Machines Dismantled . | . . . . Machines Sabotaged . | . . . . Overloaded Fab Kills . | . . . . Hacking | -11 -10 -9 -8 --------- Run | Yrd Mat Mat Mat Machines Accessed 4 | . 4 . . Terminals 4 | . 4 . . Fabricators . | . . . . Repair Stations . | . . . . Recycling Units . | . . . . Scanalyzers . | . . . . Garrison Access . | . . . . Total Hacks 7 | . 7 . . Successful 2 | . 2 . . Failed 5 | . 5 . . Catastrophic 2 | . 2 . . Database Lockouts . | . . . . Manual . | . . . . Terminals 7 | . 7 . . Fabricators . | . . . . Repair Stations . | . . . . Recycling Units . | . . . . Scanalyzers . | . . . . Garrison Access . | . . . . Terminal Hacks 2 | . 2 . . Zone Layout 2 | . 2 . . Fabricator Hacks . | . . . . Repair Station Hacks . | . . . . Recycling Unit Hacks . | . . . . Scanalyzer . | . . . . Garrison Access Hacks . | . . . . Unauthorized Hacks . | . . . . Terminals . | . . . . Fabricators . | . . . . Repair Stations . | . . . . Recycling Units . | . . . . Scanalyzers . | . . . . Garrison Access . | . . . . Data Cores Recovered . | . . . . Used . | . . . . Hacking Detections 4 | . 4 . . Full Trace Events . | . . . . Feedback Events . | . . . . Feedback Blocked . | . . . . Robot Schematics Acquired . | . . . . Robots Built . | . . . . Authchips . | . . . . Time . | . . . . Total Robot Build Rating . | . . . . Part Schematics Acquired . | . . . . Parts Built . | . . . . Authchips . | . . . . Time . | . . . . Total Part Build Rating . | . . . . Parts Repaired . | . . . . Time . | . . . . Parts Recycled . | . . . . Recycled Matter . | . . . . Retrieved Matter . | . . . . Retrieved Components . | . . . . Parts Scanalyzed . | . . . . Part Schematics Acquired . | . . . . Parts Damaged . | . . . . Bothacking | -11 -10 -9 -8 ------------ Run | Yrd Mat Mat Mat Used RIF Installer . | . . . . Robots Hacked . | . . . . Non-combat . | . . . . Combat . | . . . . Robot Hacks Applied . | . . . . Relay Couplers Released . | . . . . Fabnet Peak Effective % . | . . . . Robots Rewired . | . . . . Allies Hacked . | . . . . Hacks Repelled . | . . . . Allies | -11 -10 -9 -8 -------- Run | Yrd Mat Mat Mat Total Allies . | . . . . Largest Group . | . . . . Highest-Rated Group . | . . . . Highest-Rated Ally . | . . . . Total Orders . | . . . . Ally Attacks . | . . . . Total Damage . | . . . . Kills . | . . . . Allies Corrupted . | . . . . Allies Melted . | . . . . Intel | -11 -10 -9 -8 ------- Run | Yrd Mat Mat Mat Robot Analysis Total . | . . . . Derelict Logs Recovered . | . . . . Drone Launches . | . . . . Drone Recoveries . | . . . . Exploration | -11 -10 -9 -8 ------------- Run | Yrd Mat Mat Mat Turns Passed 2363 | 149 909 981 324 Spaces Moved 991 | 83 401 357 150 Core 17 | 9 . . 8 Treads 974 | 74 401 357 142 Legs . | . . . . Wheels . | . . . . Hover . | . . . . Flight . | . . . . Fastest Speed 50 | 50 160 160 160 Average Speed 179 | 148 160 209 177 Slowest Speed 450 | 160 160 320 450 Overloaded Moves . | . . . . Propulsion Burnouts . | . . . . Robots Hopped . | . . . . Cave-ins Triggered . | . . . . Exploration Rate (%) 34 | 5 83 34 14 Regions Visited 3 Branch Regions . Pre-discovered Areas . | . . . . Known Exits Taken . | . . . . Unknown Exits Taken 3 | 1 1 1 . Scrap Searched . | . . . . Spaces Dug . | . . . . Terrain Destroyed . | . . . . Melee . | . . . . Projectile . | . . . . AOE . | . . . . Terrain Rammed . | . . . . Walls Destroyed . | . . . . Machines Disabled . | . . . . Actions | -11 -10 -9 -8 --------- Run | Yrd Mat Mat Mat Total 1367 | 102 577 500 188 Wait 187 | . 111 67 9 Move 988 | 82 400 356 150 Hop . | . . . . Pick Up 33 | 9 9 12 3 Fast Attach 1 | . 1 . . Attach 24 | 7 1 6 10 Detach 1 | . . . 1 Swap 8 | . 3 3 2 Drop 10 | . 4 6 . Fire 115 | 4 48 50 13 Melee . | . . . . Ram . | . . . . Kick . | . . . . Crush . | . . . . Escape Stasis . | . . . . Rewire . | . . . . Trap . | . . . . Miscellaneous . | . . . . Route ------- -11/Scrapyard -10/Materials (discovered 2 exits: [*Mat] / [*Min]) -9/Materials (discovered 2 exits: [*Mat] / [*Min]) -8/Materials History --------- Turn | Location | Event 3 | -11/Scrapyard | Discovered new exit (range 16) 150 | -11/Scrapyard | Entered Materials 303 | -10/Materials | Build established: Mutant 506 | -10/Materials | Discovered new exit (range 13) 734 | -10/Materials | Discovered new exit (range 16) 1059 | -10/Materials | Entered another Materials area 1059 | -9/Materials | Evolved 2 slots: Power x1, Utility x1 1770 | -9/Materials | Discovered new exit (range 7) 1919 | -9/Materials | Discovered new exit (range 5) 2040 | -9/Materials | Entered another Materials area 2040 | -8/Materials | Evolved 2 slots: Propulsion x2 2333 | -8/Materials | Core integrity fell below 50% 2357 | -8/Materials | Core integrity fell below 20% 2364 | -8/Materials | Destroyed by Y-45 Defender with Heavy Assault Rifle Last Messages --------------- Hardlight Generator destroyed. Autogun destroyed. Hvy. Ion Engine destroyed. Lgt. Treads destroyed. Autogun destroyed. Critical hit (Burn: +37). Y-45 Defender destroyed. EM Pulse Cannon destroyed. U-05 Engineer builds a Door. Critical hit (Burn: +37). Hardlight Generator destroyed. G-47 Trooper destroyed. Critical hit (Burn: +37). Imp. Assault Rifle destroyed. Critical hit (Burn: +37). System corrupted: Energy discharge (-23). Imp. Assault Rifle destroyed. Critical hit (Burn: +37). Acquired 59 matter. R-06 Scavenger collects Corrupted Lgt. Treads. Map ----- +----------------------------------------------------+ | ?????????????????????????????????????????????????? | | ?????????????????????????????????????????????????? | | ?????????????????????????????????????????????????? | | ???????????????????????????????????? ??????????? | | ???????????????????????????????????# ??????????? | | ???????????????????????????????????# ??????????? | | ???????????????????????????????????# #?????????? | | ??????????????????#+#??????????????# #?????????? | | ????????????????# ??????????+### #?????????? | | ????????????????? ??????????? #?????????? | | ????????????????? ???????????? #?????????? | | ????????????????? ????????????? #?????????? | | ????????????????? ?????????????# +?????????? | | ?????????????????# #?????????????# #?????????? | | ?????????????????# #?????????????# #??#######? | | ?????????????????# #??????######## #### #? | | ?????????????????# #??????# ^ ## | | ?????????????????# #??????# #? | | ?????????????????# #??????# #? | | ?????????????????# #??????# #####/##### #? | | ?????????????????# #??????# # ## ##? | | ?????????????????# #??????# # [ """ ## ##? | | ?????????????????# ######## # """"" ## #?? | | ????############## Y =%g g # """"" ## #?? | | ?? [!* r + """"" ## #?? | | ?? !@ # """ ## #?? | | ?? ############ [ ## ##? | | ????##########+#######??????????# # ## | | ????????????????????????????????########### | | ??????????????????????????????????????????# | | ?????????????????????????????????????#????# | | ??????????????????????????????????????????# ## | | ??????????????????????????????????????????#######? | | ?????????????????????????????????????????#?#??#?#? | | ?????????????????????????????????????????????????? | | ???????????????????????????????????????????????#?? | | ?????????????????????????????????????????#???????? | | ?????????????????????????????????????????????????? | | ?????????????????????????????????????????????#???# | | | | | | | | | | | | | | | | | | | | | | | +----------------------------------------------------+ Best States ------------- Heat Dissipation 31 Energy Generation 23 Energy Capacity 320 Matter Stores 300 Matter Capacity 300 Sight Range 16 Terrain Scan Range 16 Terrain Scan Density 10 Armor Coverage 225 Evasion (%) 50 Recoil Reduction 4 Item Schematics ----------------- None Robot Schematics ------------------ None Fabricated ------------ Nothing Alien Tech Used ----------------- None Achievements -------------- None Challenges ------------ None Game ------ Seed MicroGuidanceBox Manual? 0 Play Time 00:18:11 Cumulative 25.6 hours Start 2024.04.24 @ 19:23:25 End 2024.04.24 @ 19:50:13 Sessions 1 Manual Loads 0 Difficulty Rogue Special Mode None Game No. 69 Rogue 67 Adventurer 2 Explorer 0 Win Type - Total 0 Types 0/0/0/0/0/0/0/0/0 Lore% 22 Gallery% 30 Achievement% 23 Wizard Run 0 Options --------- Layout 1 ASCII 0 Keyboard 0 Movement Mouse Keybinds 0 Fullscreen 1 Font 16/SmallcapsGlow Map View 55x38 Zoom Use 4% Tactical HUD 0 Map Filters NONE Filters NONE Steam 1 RUN: dae82e23-6e1e-4d8e-ab7c-5a25771b0892